Cogmind - Beta 15 @@@ ROGUE MODE // 2025.05.13 @ 22:00:32 Player: LustLizard Result: Self-destructed Performance ------------- Evolutions (5) 2500 Regions Visited (4) 800 Robots Destroyed (31) 155 Value Destroyed (1052) 1052 Prototype IDs (6) 120 Alien Tech Used (0) 0 Bonus (300) 300 TOTAL SCORE: 4927 Bonus ------- Registered with UFD 300 Cogmind --------- Core Integrity 886/1000 Matter 275/300 Energy 51/310 System Corruption 12% Temperature Cool (0) Movement Core (750) Ox14 Location -5/Factory Parts ------- > --- POWER (2) -------- Fission Core (fused) > --- PROPULSION (4) --- Armored Medium Treads Armored Medium Treads > --- UTILITY (8) ------ Scrap Suit Large Storage Unit Enhanced Optical Array Improved Signal Interpreter Improved Weapon Cycler Improved Recalibrator > --- WEAPON (3) ------- Proton Missile Launcher > --- INVENTORY (15) --- Light Fission Core Fusion Compressor Improved Carbon-fiber Leg Armored Wheel Armored Wheel Medium Storage Unit Large Battery (200) Improved Signal Interpreter Improved Weapon Cycler Transmission Jammer Thermal Shield Gauss Rifle Falx Peak State ------------ > --- POWER ------------ Subdweller Power Source Fission Core > --- PROPULSION ------- Armored Medium Treads Armored Medium Treads Armored Huge Wheel > --- UTILITY ---------- Scrap Suit Coolant Injector Large Storage Unit Enhanced Optical Array Improved Signal Interpreter Improved Weapon Cycler Improved Recalibrator > --- WEAPON ----------- Heavy Riot Gun Heavy Riot Gun Heavy Riot Gun > --- INVENTORY -------- Fusion Compressor Improved Carbon-fiber Leg Armored Wheel Armored Wheel Medium Storage Unit Large Battery Improved Signal Interpreter Improved Weapon Cycler Transmission Jammer Thermal Shield Heavy Riot Gun Proton Missile Launcher Falx [Rating: 76] Favorites ----------- Power Ion Engine Engine Ion Engine Power Core Light Nuclear Core Propulsion Light Treads Treads Light Treads Leg Carbon-fiber Leg Wheel Subdweller Monowheel Utility Large Storage Unit Device Sensor Array Storage Large Storage Unit Processor Improved Signal Interpreter Protection Light Armor Plating Weapon Heavy Riot Gun Energy Gun Heavy Riot Gun Ballistic Gun Battle Rifle Ballistic Cannon Light Cannon Launcher Proton Missile Launcher Build | -11 -10 -10 -7 -5 ------- Run | Yrd Mat Sub Scr Fac Slots Evolved 10 | . . . . 10 Power 1 | . . . . 1 Propulsion 2 | . . . . 2 Utility 6 | . . . . 6 Weapon 1 | . . . . 1 Parts Attached 53 | 6 13 7 9 18 Power 7 | 1 1 1 2 2 Engine 5 | 1 1 1 1 1 Core 2 | . . . 1 1 Reactor . | . . . . . Propulsion 13 | 2 2 1 3 5 Treads 4 | 1 1 . . 2 Leg 3 | . . . 2 1 Wheel 6 | 1 1 1 1 2 Hover . | . . . . . Flight . | . . . . . Utility 18 | 1 6 2 1 8 Device 7 | . . 1 1 5 Storage 4 | 1 2 . . 1 Processor 3 | . 1 . . 2 Hackware . | . . . . . Protection 4 | . 3 1 . . Artifact . | . . . . . Weapon 15 | 2 4 3 3 3 Energy Gun 7 | . 2 . 3 2 Energy Cannon . | . . . . . Ballistic Gun 5 | 2 1 2 . . Ballistic Cannon 2 | . 1 1 . . Launcher 1 | . . . . 1 Special Weapon . | . . . . . Impact Weapon . | . . . . . Slashing Weapon . | . . . . . Piercing Weapon . | . . . . . Special Melee Weapon . | . . . . . Unidentified Prototypes . | . . . . . Parts Lost 19 | . 6 5 . 8 Power 3 | . 1 . . 2 Propulsion 2 | . 1 1 . . Utility 5 | . 2 1 . 2 Weapon 9 | . 2 3 . 4 Highest Loss Streak 4 | . 4 2 . 4 To Critical Strikes . | . . . . . Average Backups 12 | 4 8 14 14 13 Power 1 | 1 1 2 1 . Propulsion 2 | 2 2 2 2 3 Utility 5 | . 2 7 6 7 Weapon 2 | 1 1 1 3 2 Tool/Special . | . . . . . Unused Backups 20 | . 4 1 8 7 Power 2 | . 1 . . 1 Propulsion 5 | . 2 . 1 2 Utility 6 | . . 1 2 3 Weapon 7 | . 1 . 5 1 Tool/Special . | . . . . . Average Slot Usage (%) 95 | . 97 95 99 83 Engine 8 | . 13 14 5 4 Core 4 | . . . 8 5 Treads 10 | . 14 14 6 10 Leg 6 | . . . 14 1 Wheel 8 | . 14 13 6 3 Device 10 | . . 7 13 15 Storage 12 | . 14 14 14 7 Processor 2 | . . . . 10 Protection 3 | . 11 3 . 3 Energy Gun 12 | . 9 10 13 15 Ballistic Gun 9 | . 11 5 14 . Ballistic Cannon 3 | . 6 11 . . Peak Build Rating 76 | 6 8 11 24 76 Average Rating 24 | 3 7 8 19 63 On Entrance 9 | . 6 8 11 24 Naked Turns . | . . . . . Heaviest Build 56 | 12 32 32 34 56 Greatest Support 46 | 16 16 20 33 46 Greatest Overweight (x) 16 | . 3 3 10 16 Average Overweight (x) 1 | . 1 2 . 1 Largest Inventory Capacity 15 | 8 15 15 15 15 Average Capacity 13 | 7 10 15 15 15 Most Carried 15 | 8 13 15 15 15 Average Carried 13 | 4 8 14 14 13 Final Capacity 15 | 8 15 15 15 15 Final Carried 15 | 6 13 15 15 13 Class Distribution -------------------- 81% | Mutant 11% | Derelict-Skirmisher 5% | Skirmisher Dominant Class ---------------- Mutant | -10/Materials Mutant | -10/Subcaves Mutant | -7/Scraptown Derelict-Skirmisher | -5/Factory Resources | -11 -10 -10 -7 -5 ----------- Run | Yrd Mat Sub Scr Fac Matter Collected 998 | 208 298 211 62 219 Remotely . | . . . . . Salvage Created 1173 | . 558 133 . 482 Parts 69 | . 34 11 . 24 Haulers Intercepted 1 | . 1 . . . Recyclers Shooed 7 | . 3 . . 4 Parts Field Recycled . | . . . . . Retrieved Matter . | . . . . . Parts Self-Destructed 7 | . . 7 . . Prevented . | . . . . . Kills | -11 -10 -10 -7 -5 ------- Run | Yrd Mat Sub Scr Fac Combat Hostiles Destroyed 26 | . 15 6 . 5 Guns 14 | . 11 1 . 2 Cannons 8 | . 3 5 . . AOE 2 | . . . . 2 Classes Destroyed 9 | . 4 2 . 3 Hauler 1 | . 1 . . . Recycler 1 | . . . . 1 Watcher 3 | . 2 . . 1 Swarmer 6 | . 6 . . . Grunt 9 | . 9 . . . Sentry 1 | . . 1 . . Hunter 1 | . . . . 1 Programmer 4 | . . . . 4 Subdweller 5 | . . 5 . . Best Kill Streak 4 | . 4 3 . 2 Combat Bots Only 3 | . 3 3 . 1 Max Kills in Single Turn 1 | . 1 1 . 1 Gunslinging . | . . . . . Exploded 1 | . . . . 1 Melee . | . . . . . Uniques/NPCs Destroyed . | . . . . . Combat | -11 -10 -10 -7 -5 -------- Run | Yrd Mat Sub Scr Fac Hostile Shots Fired 227 | . 74 53 . 100 Missed 64 | . 21 18 . 25 Hits 163 | . 53 35 . 75 Projectile 163 | . 53 35 . 75 Critical Strikes 6 | . 2 1 . 3 Damage Taken 3229 | . 745 783 . 1701 Core 316 | . 73 129 . 114 Absorbed by Shields . | . . . . . Regen/Repaired (Parts) 64 | . . . . 64 Core Remaining (%) 59 | 100 . . 19 . Volleys Fired 179 | . 77 40 . 62 Largest 3 | . 2 2 . 3 Hottest 180 | . 70 70 . 180 Shots Fired 337 | . 146 61 . 130 Gun 286 | . 135 25 . 126 Cannon 47 | . 11 36 . . Launcher 4 | . . . . 4 Special . | . . . . . Kinetic 160 | . 113 47 . . Thermal 23 | . 9 14 . . Explosive . | . . . . . Electromagnetic 154 | . 24 . . 130 Robot Hit Streak 17 | . 17 12 . 11 Robot Miss Streak 5 | . 5 2 . 5 Penetration Max . | . . . . . Secondary Targets 3 | . 2 . . 1 Max Gunslinging Chain 1 | . 1 . . 1 Shots Hit Robots 238 | . 85 47 . 106 Core Hits 102 | . 37 11 . 54 Critical Kills . | . . . . . Critical Parts Destroyed . | . . . . . Critical Strikes 3 | . 1 2 . . Blast 3 | . 1 2 . . Melee Attacks . | . . . . . Impact . | . . . . . Slashing . | . . . . . Piercing . | . . . . . Sneak Attacks . | . . . . . Combat Hostiles . | . . . . . Follow-up Attacks . | . . . . . Damage Inflicted 3144 | . 915 817 . 1412 Guns 1931 | . 729 360 . 842 Cannons 565 | . 108 457 . . Explosions 648 | . 78 . . 570 Melee . | . . . . . Ramming . | . . . . . Kinetic 1293 | . 591 702 . . Thermal 758 | . 143 115 . 500 Explosive . | . . . . . Electromagnetic 1093 | . 181 . . 912 Impact . | . . . . . Slashing . | . . . . . Piercing . | . . . . . Highest Corruption 12 | . . . . 12 Average Corruption 3 | . . . . 3 Corruption Purged . | . . . . . Corruption Blocked . | . . . . . Effects 16 | . . . . 16 Message Errors 4 | . . . . 4 Matter Fused 3 | . . . . 3 Heat Flow Errors 2 | . . . . 2 Energy Discharges 2 | . . . . 2 Parts Rejected 1 | . . . . 1 Parts Fused 1 | . . . . 1 Data Loss (major) 1 | . . . . 1 Misfires 1 | . . . . 1 Alerts 1 | . . . . 1 Overload Shots . | . . . . . Overflow Damage 133 | . 37 . . 96 Projectiles . | . . . . . Explosions 133 | . 37 . . 96 Melee . | . . . . . Knockbacks 1 | . . 1 . . Impact . | . . . . . Kinetic 1 | . . 1 . . Secondary . | . . . . . Self-Inflicted Damage 266 | . 39 . . 227 Shots 9 | . 1 . . 8 Rammed . | . . . . . Targets Rammed . | . . . . . Kicked . | . . . . . Crushed . | . . . . . Highest Temperature 498 | . 232 . . 498 Average Temperature 111 | . 62 . . 155 Received Heat Transfer 510 | . 369 141 . . Effects 5 | . . . . 5 Shutdowns 2 | . . . . 2 Energy Bleed 1 | . . . . 1 Interference 2 | . . . . 2 Siege Activations . | . . . . . Martial Activations . | . . . . . Shielding Activations . | . . . . . Robots Disrupted . | . . . . . Combat Hostiles . | . . . . . Robots Corrupted 2 | . 1 . . 1 Combat Hostiles 2 | . 1 . . 1 Parts Fried 4 | . . . . 4 Impact Corruptions . | . . . . . Robots Melted . | . . . . . Combat Hostiles . | . . . . . Parts Melted . | . . . . . Heat Transferred 950 | . 300 250 . 400 Parts Sabotaged . | . . . . . Parts Stolen . | . . . . . Parts Stripped . | . . . . . Power Chain Reactions 7 | . 2 . . 5 Alert | -11 -10 -10 -7 -5 ------- Run | Yrd Mat Sub Scr Fac Maximum Alert Level . | . . . . . Low Security (%) 100 | 100 100 . . 100 Level 1 . | . . . . . Level 2 . | . . . . . Level 3 . | . . . . . Level 4 . | . . . . . Level 5 . | . . . . . High Security . | . . . . . Max Security . | . . . . . Peak Influence 92 | . 92 . . 45 Initial . | . . . . . Average 14 | . 24 . . 5 Influence Increases 682 | . 462 20 . 200 Destroy 0b10 Robot/C 420 | . 300 20 . 100 Destroy 0b10 Robot/NC 25 | . 15 . . 10 Destroy Leader 98 | . 66 . . 32 Successful Hack 39 | . 39 . . . Destroy Structure 40 | . 12 . . 28 Partial Spotted 15 | . . . . 15 Lose Combat Pursuer 45 | . 30 . . 15 Influence Decreases 660 | . 382 100 . 178 Entered New Map 39 | . . 39 . . Time Decay 501 | . 322 61 . 118 Lost Part 120 | . 60 . . 60 Squads Dispatched 7 | . 2 . . 5 Investigation 1 | . 1 . . . Extermination 2 | . . . . 2 Reinforcement 4 | . 1 . . 3 Assault . | . . . . . Garrison . | . . . . . Intercept . | . . . . . Searches Triggered . | . . . . . Construction Impeded 2 | . . . . 2 Haulers Reinforced . | . . . . . Active Scanning Responses . | . . . . . Cargo Convoy Interrupts . | . . . . . Stealth | -11 -10 -10 -7 -5 --------- Run | Yrd Mat Sub Scr Fac Distress Signals 3 | . 1 . . 2 Communications Jammed . | . . . . . Distress Signals . | . . . . . Times Spotted 42 | . 24 6 . 12 Peak Tracking Total 6 | . 6 2 . 3 Tactical Retreats 2 | . 1 . . 1 Traps | -11 -10 -10 -7 -5 ------- Run | Yrd Mat Sub Scr Fac Traps Triggered 3 | . 3 . . . Indirectly . | . . . . . Trap Hack Attempts . | . . . . . Triggered . | . . . . . Disarmed . | . . . . . Reprogrammed . | . . . . . Reused . | . . . . . Traps Extracted . | . . . . . Installed . | . . . . . Triggered . | . . . . . Machines | -11 -10 -10 -7 -5 ---------- Run | Yrd Mat Sub Scr Fac Machines Disabled . | . . . . . Max in Single Turn . | . . . . . Machines Repaired . | . . . . . Machines Dismantled . | . . . . . Machines Sabotaged . | . . . . . Overloaded Fab Kills . | . . . . . Hacking | -11 -10 -10 -7 -5 --------- Run | Yrd Mat Sub Scr Fac Machines Accessed 12 | . 8 . 4 . Terminals 8 | . 8 . . . Fabricators . | . . . . . Repair Stations . | . . . . . Recycling Units . | . . . . . Scanalyzers . | . . . . . Garrison Access . | . . . . . Total Hacks 46 | . 27 . 19 . Successful 32 | . 13 . 19 . Failed 14 | . 14 . . . Catastrophic 3 | . 3 . . . Database Lockouts . | . . . . . Manual 22 | . 22 . . . Terminals 27 | . 27 . . . Fabricators . | . . . . . Repair Stations . | . . . . . Recycling Units . | . . . . . Scanalyzers . | . . . . . Garrison Access . | . . . . . Terminal Hacks 26 | . 7 . 19 . Record 18 | . . . 18 . Robot Analysis 4 | . 4 . . . Locate Traps 2 | . 2 . . . Hauler Manifests 1 | . 1 . . . Proto ID Catalog 1 | . . . 1 . Fabricator Hacks . | . . . . . Repair Station Hacks . | . . . . . Recycling Unit Hacks . | . . . . . Scanalyzer . | . . . . . Garrison Access Hacks . | . . . . . Unauthorized Hacks 6 | . 6 . . . Terminals 6 | . 6 . . . Assimilate 4 | . 4 . . . Botnet 2 | . 2 . . . Fabricators . | . . . . . Repair Stations . | . . . . . Recycling Units . | . . . . . Scanalyzers . | . . . . . Garrison Access . | . . . . . Data Cores Recovered . | . . . . . Used . | . . . . . Hacking Detections 8 | . 8 . . . Full Trace Events . | . . . . . Feedback Events . | . . . . . Feedback Blocked . | . . . . . Robot Schematics Acquired . | . . . . . Robots Built . | . . . . . Authchips . | . . . . . Time . | . . . . . Total Robot Build Rating . | . . . . . Part Schematics Acquired . | . . . . . Parts Built . | . . . . . Authchips . | . . . . . Time . | . . . . . Total Part Build Rating . | . . . . . Parts Repaired . | . . . . . Time . | . . . . . Parts Recycled . | . . . . . Recycled Matter . | . . . . . Retrieved Matter . | . . . . . Retrieved Components . | . . . . . Parts Scanalyzed . | . . . . . Part Schematics Acquired . | . . . . . Parts Damaged . | . . . . . Bothacking | -11 -10 -10 -7 -5 ------------ Run | Yrd Mat Sub Scr Fac Used RIF Installer . | . . . . . Robots Hacked . | . . . . . Non-combat . | . . . . . Combat . | . . . . . Robot Hacks Applied . | . . . . . Relay Couplers Released . | . . . . . Fabnet Peak Effective % . | . . . . . Robots Rewired . | . . . . . Allies Hacked 1 | . . . . 1 Hacks Repelled . | . . . . . Allies | -11 -10 -10 -7 -5 -------- Run | Yrd Mat Sub Scr Fac Total Allies 1 | . 1 . . . Largest Group 1 | . 1 1 1 1 Highest-Rated Group 10 | . 10 10 10 10 Highest-Rated Ally 10 | . 10 10 10 10 Total Orders . | . . . . . Ally Attacks . | . . . . . Total Damage . | . . . . . Kills . | . . . . . Allies Corrupted . | . . . . . Allies Melted . | . . . . . Intel | -11 -10 -10 -7 -5 ------- Run | Yrd Mat Sub Scr Fac Active Infowar (turns) 4366 | . . 470 2582 1314 Optics 1313 | . . . . 1313 Sensors 4130 | . . 470 2582 1078 Robot Analysis Total 4 | . 4 . . . Derelict Logs Recovered 4 | . . . 4 . Drone Launches . | . . . . . Drone Recoveries . | . . . . . Exploration | -11 -10 -10 -7 -5 ------------- Run | Yrd Mat Sub Scr Fac Turns Passed 6224 | 56 1271 893 2618 1386 Spaces Moved 4307 | 44 931 665 1856 811 Core 34 | 12 . . 8 14 Treads . | . . . . . Legs 929 | . . . 844 85 Wheels 3344 | 32 931 665 1004 712 Hover . | . . . . . Flight . | . . . . . Fastest Speed 50 | 50 95 110 120 115 Average Speed 125 | 86 107 115 138 126 Slowest Speed 850 | 100 125 125 550 850 Overloaded Moves . | . . . . . Propulsion Burnouts . | . . . . . Robots Hopped . | . . . . . Potential Cave-ins . | . . . . . Cave-ins Triggered . | . . . . . Exploration Rate (%) 49 | 4 97 37 95 13 Regions Visited 4 Branch Regions 2 Pre-discovered Areas 2 | . . 1 1 . Known Exits Taken . | . . . . . Unknown Exits Taken 4 | 1 1 1 1 . Scrap Searched 6 | . . 3 3 . Spaces Dug . | . . . . . Terrain Destroyed 22 | . 9 . . 13 Melee . | . . . . . Projectile . | . . . . . AOE 22 | . 9 . . 13 Terrain Rammed . | . . . . . Walls Destroyed . | . . . . . Machines Disabled . | . . . . . Actions | -11 -10 -10 -7 -5 --------- Run | Yrd Mat Sub Scr Fac Total 4844 | 61 1079 726 1906 1072 Wait 186 | . 23 3 4 156 Move 4303 | 43 930 664 1855 811 Hop . | . . . . . Pick Up 81 | 12 25 9 19 16 Fast Attach . | . . . . . Attach 47 | 6 11 5 9 16 Detach 2 | . . . . 2 Swap 9 | . 2 2 . 5 Drop 37 | . 11 3 19 4 Fire 179 | . 77 40 . 62 Melee . | . . . . . Ram . | . . . . . Kick . | . . . . . Crush . | . . . . . Escape Stasis . | . . . . . Rewire . | . . . . . Trap . | . . . . . Miscellaneous . | . . . . . Route ------- -11/Scrapyard -10/Materials (discovered 5 exits: [*Mat x3] / [*Min] / [*Sub]) -10/Subcaves -7/Scraptown (discovered 2 exits: [*Fac x2]) -5/Factory History --------- Turn | Location | Event 20 | -11/Scrapyard | Discovered new exit (range 13) 57 | -11/Scrapyard | Entered Materials 236 | -10/Materials | Discovered new exit (range 12) 304 | -10/Materials | Build established: Mutant 388 | -10/Materials | Lost 4 parts (1p1n1u1w) 505 | -10/Materials | Discovered new exit (range 3) 663 | -10/Materials | Discovered new exit (range 12) 943 | -10/Materials | Discovered new exit (range 13) 948 | -10/Materials | Discovered new exit (range 8) 1328 | -10/Materials | Entered Subcaves 1328 | -10/Subcaves | Accompanied by 1 ally 1329 | -10/Subcaves | Approached by a straggling Scientist 1419 | -10/Subcaves | Learned location of Zion (-7) 1419 | -10/Subcaves | Met a Zionite searching for "candidates" 1772 | -10/Subcaves | Scientist uncovered a shortcut to Scraptown 1939 | -10/Subcaves | Shifting Twisted Machinery released Spk. Treads 1979 | -10/Subcaves | Core integrity fell below 50% 2024 | -10/Subcaves | Core integrity fell below 20% 2221 | -10/Subcaves | Entered Scraptown 2221 | -7/Scraptown | Accompanied by 1 ally 2410 | -7/Scraptown | Learned location of Extension (-5) 2449 | -7/Scraptown | Visited TADAMA 2477 | -7/Scraptown | Visited UFD Registry 2487 | -7/Scraptown | Visited Cyclists 2556 | -7/Scraptown | Visited Assassins FH 2585 | -7/Scraptown | Visited IN-MT5's Study 2657 | -7/Scraptown | Visited Spacefarers 2715 | -7/Scraptown | Heard Great Nut preacher, LISTEN AND RECITE! 2804 | -7/Scraptown | Scanned Subdweller tech in exchange for log data 2806 | -7/Scraptown | Learned Research security intel 2807 | -7/Scraptown | Learned Factory stockpile data 2808 | -7/Scraptown | Learned Research stockpile data 2825 | -7/Scraptown | Discovered new exit (range 7) 3286 | -7/Scraptown | Visited Symbiants 3746 | -7/Scraptown | Registered with UFD as "Shockkit" 3787 | -7/Scraptown | Visited Chapter 10 3827 | -7/Scraptown | Visited Curators Association 3851 | -7/Scraptown | Visited Abandonware Association 3872 | -7/Scraptown | Learned abandonware demo "KABOOM.EXE" 3872 | -7/Scraptown | Learned abandonware demo "MELTYB.EXE" 3907 | -7/Scraptown | Visited Science Guys 3960 | -7/Scraptown | Visited Supply Room 4013 | -7/Scraptown | Visited Scrap Suit Storage 4027 | -7/Scraptown | Found Scrap Suit 4076 | -7/Scraptown | Visited Observation Area 4155 | -7/Scraptown | Visited Scrapoid Research Area 4553 | -7/Scraptown | Visited Research Penetration Think Tank 4828 | -7/Scraptown | Discovered new exit (range 5) 4839 | -7/Scraptown | Entered Factory 4839 | -5/Factory | Accompanied by 1 ally 4839 | -5/Factory | Evolved 10 slots: Power x1, Propulsion x2, Utility x6, Weapon x1 5250 | -5/Factory | Build established: Skirmisher 5684 | -5/Factory | Build established: Derelict-Skirmisher 6056 | -5/Factory | Lost 4 parts (2u2w) 6218 | -5/Factory | System corruption reached 10% 6225 | -5/Factory | Self-destructed Last Messages --------------- 06179_ U-05 Engineer builds a Wall. 06183_ QPU 9/%EXKF99 06186_ K-01 Serf collects debris. 06199_ U-05 Engineer repairs door. 06206_ U-05 Engineer lays Concrete. 06210_ Acquired Corrupted Lgt. Fission Core. 06212_ System corrupted: FCS attempts to trigger Proton Missile Launcher. 06212_ System corrupted: Proton Missile Launcher misfires. 06212_ Door malfunctions. 06212_ ALERT: Construction progress impeded, dispatching reinforcements to local area. 06212_ Hvy. Riot Gun destroyed. 06215_ P-70 Sage resets U-05 Engineer, system corruption cleaned. 06220_ Emergency Access malfunctions. 06220_ Chain reaction triggered in Corrupted Imp. Ion Engine. Map ----- +----------------------------------------------------+ | ???????????????????????????????????????????????# | | ?????????????????????????????????????#########?# | | ?????????????????????????????????????# ## | | ?????????????????????????????????????# ## | | ?????????????????????????????????????# ## | | ?????????????????????????????????????# ## | | ?????????????????????????????????????# """""" ## | | ?????????????????????????????????????# """""" ## | | ?????????????????????????????????????# """""" ## | | ?????????????????????????????????????# """"""??# | | ???????????????#?????????????????????? ????# | | ???????????????# #######################+####### | | ???????????????# | | ???????????????# | | ?????????????### | | ????????????? | | ???????????????# | | ???????????????# ############+#############+## | | !???????????????? # # #????????? | | ?????????????????? # # #????????? | | ???????????????????? / # """"""" #????????? | | ?????????????????????# t # """"""" #????????? | | ?????????????????????# # """"""" #????????? | | ?????????????????????# # """"""" #????????? | | ?????????????????????# # #????????? | | ?????????????????????# @ # """"""" #????????? | | ?????????????????????# ! p """"""" #????????? | | ???????????? # =%[! """"""" #????????? | | ???????????? + =[ """""" #????????? | | ????????# # ] # #????????? | | ????????# ?####################????????? | | ????????# #####??????????????????????????????? | | ????????# ??????????????????????????????????????? | | ?????????????????????????????????????????????????? | | ?????????????????????????????????????????????????? | | ?????????????????????????????????????????????????? | | ?????????????????????????????????????????????????? | | ?????????????????????????????????????????????????? | | ?????????????????????????????????????????????????? | | ?????????????????????????????????????????????????? | | ?????????????????????????????????????????????????? | | ?????????????????????????????????????????????????? | | ?????????????????????????????????????????????????? | | ?????????????????????????????????????????????????? | | ?????????????????????????????????????????????????? | | ?????????????????????????????????????????????????? | | ?????????????????????????????????????????????????? | | ?????????????????????????????????????????????????? | | ?????????????????????????????????????????????????? | | ?????????????????????????????????????????????????? | +----------------------------------------------------+ Best States ------------- Heat Dissipation 40 Coolant Potential 65 Energy Generation 28 Energy Capacity 460 Matter Stores 300 Matter Capacity 300 Sight Range 22 Robot Scan Range 14 Terrain Scan Density 10 Armor Coverage 150 Weapon Cycling 20 Evasion (%) 55 Targeting Accuracy 5 Item Schematics ----------------- None Robot Schematics ------------------ None Fabricated ------------ Nothing Repaired ---------- Nothing Alien Tech Used ----------------- None Achievements -------------- None Challenges ------------ None Game ------ Seed PowerGlidesysCutter Manual? 0 Play Time 00:57:34 Cumulative 141.1 hours Start 2025.05.13 @ 21:00:43 End 2025.05.13 @ 22:00:32 Sessions 1 Manual Loads 0 Difficulty Rogue Special Mode None Game No. 135 Rogue 135 Adventurer 0 Explorer 0 Win Type - Total 1 Types 1/0/0/0/0/0/0/0/0/0 Lore% 41 Gallery% 43 Achievement% 37 Wizard Run 0 Options --------- Layout 1 ASCII 0 Keyboard 0 Movement Numpad Keybinds 0 Fullscreen 1 Font 24/Smallcaps Map View 50x35 Zoom Use 0% Tactical HUD 1 Map Filters NONE Filters NONE Steam 1 RUN: aa8c0524-d58d-4250-af78-f2a2ce3a1343